bitfinex/quotes_BTCUSD_20240602
["timestamp","ask_amount","ask_price","bid_price","bid_amount"]
[1717292983515,6.85081016,67830.0,67829.0,1.0]
[1717292983925,6.78189382,67830.0,67829.0,1.0]
[1717292984072,6.78234074,67830.0,67829.0,1.0]
[1717292984277,2.89234074,67830.0,67829.0,1.0]
[1717292984479,2.75434074,67830.0,67829.0,1.0]
[1717292984675,2.36834074,67830.0,67829.0,1.0]
[1717292984862,2.22134074,67830.0,67829.0,1.0]
[1717292986289,2.14354074,67830.0,67829.0,1.0]
[1717292988034,2.07964074,67830.0,67829.0,1.0]
[1717292988242,2.14354074,67830.0,67829.0,1.0]
[1717292988680,2.07964074,67830.0,67829.0,1.0]
[1717292988888,2.07964074,67830.0,67829.0,1.1597]
[1717292988889,1.62418382,67830.0,67829.0,1.1597]
[1717292989065,1.60616738,67830.0,67829.0,1.1597]
[1717292990290,1.6364407,67830.0,67829.0,1.1597]
[1717292990939,1.5364407,67830.0,67829.0,1.1597]
[1717292991147,1.50616738,67830.0,67829.0,1.1597]
[1717292992260,1.50603763,67830.0,67829.0,1.1597]
[1717292992835,1.44213763,67830.0,67829.0,1.1597]
[1717292992990,1.50603763,67830.0,67829.0,1.1597]
[1717292993641,1.47003763,67830.0,67829.0,1.1597]
[1717292994027,1.50603763,67830.0,67829.0,1.1597]
[1717292994236,1.50564143,67830.0,67829.0,1.1597]
[1717292994443,1.46964143,67830.0,67829.0,1.1597]
[1717292994660,1.50564143,67830.0,67829.0,1.1597]
[1717292995096,1.53575176,67830.0,67829.0,1.1597]
[1717293001877,1.47185176,67830.0,67829.0,1.1597]
[1717293002081,1.53674871,67830.0,67829.0,1.1597]
[1717293002764,1.53652846,67830.0,67829.0,1.0]
[1717293002977,1.62866469,67830.0,67829.0,1.0]
[1717293003212,1.62862159,67830.0,67829.0,1.0]
[1717293004058,1.56472159,67830.0,67829.0,1.0]
[1717293004235,1.62862159,67830.0,67829.0,1.0]
[1717293004651,1.62719113,67830.0,67829.0,1.0]
[1717293005605,1.48555615,67830.0,67829.0,1.0]
[1717293005818,1.62788343,67830.0,67829.0,1.0]
[1717293009296,1.62788343,67830.0,67827.0,0.0015]
[1717293009297,1.03202,67828.0,67827.0,0.0015]
[1717293009532,1.30079791,67828.0,67827.0,0.0015]
[1717293009834,1.40058681,67828.0,67827.0,0.0015]
[1717293010426,1.43658681,67828.0,67827.0,0.0015]
[1717293010790,1.53648681,67828.0,67827.0,0.0015]
[1717293014251,1.60252683,67828.0,67827.0,0.0015]
[1717293014650,1.53648681,67828.0,67827.0,0.0015]
[1717293015077,1.6026368,67828.0,67827.0,0.0015]
[1717293015252,1.62454017,67828.0,67827.0,0.0015]
[1717293016253,1.53648681,67828.0,67827.0,0.0015]
[1717293016535,1.53559245,67828.0,67827.0,0.0015]
[1717293017092,1.64565915,67828.0,67827.0,0.0015]
[1717293019230,1.53559245,67828.0,67827.0,0.0015]
[1717293019709,1.52913525,67828.0,67827.0,0.0015]
[1717293022404,1.46523525,67828.0,67827.0,0.0015]
[1717293022817,1.52913525,67828.0,67827.0,0.0015]
[1717293023010,1.52901048,67828.0,67827.0,0.0015]
[1717293023639,1.46511048,67828.0,67827.0,0.0015]
[1717293025718,1.52901048,67828.0,67827.0,0.0015]
[1717293028254,1.46511048,67828.0,67827.0,0.0015]
[1717293032911,1.38341682,67828.0,67827.0,0.0015]
[1717293034007,0.737167,67827.0,67826.0,0.15950312]
[1717293034241,1.01700453,67827.0,67826.0,0.15950312]
[1717293035428,1.05300453,67827.0,67826.0,0.15950312]
[1717293036825,1.08900453,67827.0,67826.0,0.15950312]
[1717293050195,1.1185478,67827.0,67826.0,0.15950312]
[1717293050377,1.12663624,67827.0,67826.0,0.15950312]
[1717293051950,1.12663624,67827.0,67824.0,0.0805]
[1717293051951,0.73719,67825.0,67824.0,0.0805]
[1717293052153,0.14744,67824.0,67823.0,0.1501]
[1717293052363,0.25552844,67824.0,67823.0,0.1501]
[1717293052576,0.27852844,67824.0,67823.0,0.1501]
[1717293052746,0.28958777,67824.0,67823.0,0.1501]
[1717293053549,0.87934777,67824.0,67823.0,0.1501]
[1717293053736,0.90889104,67824.0,67823.0,0.1501]
[1717293054048,0.93489104,67824.0,67823.0,0.1501]
[1717293054297,0.93489104,67824.0,67823.0,0.32752011]
[1717293054712,0.96689104,67824.0,67823.0,0.32752011]
[1717293056382,0.96635689,67824.0,67823.0,0.32752011]
[1717293058018,1.00832214,67824.0,67823.0,0.32752011]
[1717293059243,1.07465271,67824.0,67823.0,0.32752011]
[1717293061839,1.07465271,67824.0,67823.0,0.2304]
[1717293062366,1.00832214,67824.0,67823.0,0.32752011]
[1717293063547,1.00832214,67824.0,67823.0,0.32302011]
[1717293063779,1.00832214,67824.0,67823.0,0.32752011]
[1717293064758,1.00743665,67824.0,67823.0,0.32752011]
[1717293065310,0.97822731,67824.0,67823.0,0.32752011]
[1717293065727,0.38846731,67824.0,67823.0,0.38832011]
[1717293066085,0.2472367,67824.0,67823.0,0.38832011]
[1717293066284,0.2242367,67824.0,67823.0,0.47684011]
[1717293066494,0.2242367,67824.0,67823.0,0.41294011]
[1717293066495,0.21649933,67824.0,67823.0,0.41294011]
[1717293066697,0.21649933,67824.0,67823.0,0.47684011]
[1717293066907,0.22417271,67824.0,67823.0,0.47684011]
[1717293067095,0.21311338,67824.0,67823.0,0.47684011]
[1717293067298,0.21650362,67824.0,67823.0,0.47684011]
[1717293074639,0.21650362,67824.0,67823.0,0.62261802]
[1717293075025,0.20544,67824.0,67823.0,0.62261802]
[1717293075454,0.21650229,67824.0,67823.0,0.62261802]
[1717293077275,0.18450229,67824.0,67823.0,0.62261802]
[1717293077682,0.18550229,67824.0,67823.0,0.62761802]
[1717293077883,0.15950229,67824.0,67823.0,0.62761802]
[1717293078084,0.16150229,67824.0,67823.0,0.62761802]
[1717293078536,0.6021602,67824.0,67823.0,0.005]
[1717293078763,1.1531402,67824.0,67823.0,0.005]
[1717293078965,1.16081779,67824.0,67823.0,0.005]
[1717293079175,1.26081779,67824.0,67823.0,0.005]
[1717293079641,1.25881779,67824.0,67823.0,0.005]
[1717293080065,1.28481779,67824.0,67823.0,0.005]
[1717293081133,0.442359,67818.0,67817.0,0.09262011]
[1717293081337,0.47303659,67818.0,67817.0,0.09262011]
[1717293081533,0.48410791,67818.0,67817.0,0.09262011]
[1717293082377,0.48410791,67818.0,67817.0,0.09712011]
[1717293082636,0.54210791,67818.0,67817.0,0.09712011]
[1717293083044,0.54210791,67818.0,67817.0,0.09262011]
[1717293086774,0.54210791,67818.0,67817.0,0.09712011]
[1717293091098,0.442366,67817.0,67816.0,0.10119011]
[1717293091294,0.47304359,67817.0,67816.0,0.10119011]
[1717293091518,0.48410509,67817.0,67816.0,0.10119011]
[1717293092351,0.49310509,67817.0,67816.0,0.10119011]
[1717293092893,0.49310509,67817.0,67816.0,0.10219011]
[1717293093092,0.50710509,67817.0,67816.0,0.10219011]
[1717293093718,0.58490509,67817.0,67816.0,0.00957]
[1717293093976,0.58488585,67817.0,67816.0,0.00957]
[1717293094951,0.74018585,67817.0,67816.0,0.00957]
[1717293096205,0.50708585,67817.0,67816.0,0.00957]
[1717293096419,1.03509685,67817.0,67816.0,0.00957]
[1717293099193,1.03507988,67817.0,67816.0,0.00957]
[1717293101066,1.03507988,67817.0,67816.0,0.10219011]
[1717293101328,1.03507988,67817.0,67816.0,0.00957]
[1717293104362,1.03507988,67817.0,67816.0,0.10219011]
[1717293106625,1.25485779,67817.0,67816.0,0.00957]
[1717293108255,1.28903285,67817.0,67816.0,0.00957]
[1717293109039,1.68364745,67817.0,67816.0,0.00957]
[1717293109243,1.93621926,67817.0,67816.0,0.00957]
[1717293109819,1.92721926,67817.0,67816.0,0.00957]
[1717293111085,1.91321926,67817.0,67816.0,0.00857]
[1717293111299,1.94921926,67817.0,67816.0,0.00857]
[1717293111503,1.98521926,67817.0,67816.0,0.00857]
[1717293111677,1.94921926,67817.0,67816.0,0.00857]
[1717293111884,1.91321926,67817.0,67816.0,0.00857]
[1717293112100,1.94921926,67817.0,67816.0,0.00857]
[1717293112429,1.98521926,67817.0,67816.0,0.00857]
[1717293112950,1.91321926,67817.0,67816.0,0.00857]
[1717293113306,1.94921926,67817.0,67816.0,0.00857]
[1717293114129,1.95659915,67817.0,67816.0,0.00857]
[1717293114349,1.99259915,67817.0,67816.0,0.00857]
[1717293114558,1.95659915,67817.0,67816.0,0.00857]
[1717293114936,1.98521926,67817.0,67816.0,0.00857]
[1717293115368,1.94921926,67817.0,67816.0,0.00857]
[1717293115569,1.98521926,67817.0,67816.0,0.00857]
[1717293115771,1.94921926,67817.0,67816.0,0.00857]
[1717293116595,1.98521926,67817.0,67816.0,0.00857]
[1717293117108,1.99259915,67817.0,67816.0,0.00857]
[1717293117309,1.95659915,67817.0,67816.0,0.00857]
[1717293117780,1.99259915,67817.0,67816.0,0.00857]
[1717293118198,1.92131926,67817.0,67816.0,0.00857]
[1717293118412,1.98521926,67817.0,67816.0,0.00857]
[1717293118742,1.94843582,67817.0,67816.0,0.00857]
[1717293118970,1.9869188,67817.0,67816.0,0.00857]
[1717293119822,1.9516294,67817.0,67816.0,0.00857]
[1717293120018,1.98678676,67817.0,67816.0,0.00857]
[1717293120221,1.99416665,67817.0,67816.0,0.00857]
[1717293122532,0.542425,67808.0,67807.0,0.00857]
[1717293122700,1.02090108,67808.0,67807.0,0.00857]
[1717293122945,1.64690108,67808.0,67807.0,0.00857]
[1717293123154,1.72167076,67808.0,67807.0,0.00857]
[1717293123686,1.65777076,67808.0,67807.0,0.00857]
[1717293123911,1.71667076,67808.0,67807.0,0.00857]
[1717293124119,1.75267076,67808.0,67807.0,0.00857]
[1717293124929,1.78867076,67808.0,67807.0,0.00857]
[1717293125191,1.62797076,67808.0,67807.0,0.00857]
[1717293125402,1.59197076,67808.0,67807.0,0.00857]
[1717293125796,1.62797076,67808.0,67807.0,0.00857]
[1717293133336,1.62017259,67808.0,67807.0,0.00857]
[1717293133536,1.62778409,67808.0,67807.0,0.00857]
[1717293134706,1.63516398,67808.0,67807.0,0.00857]
[1717293134881,1.99257382,67808.0,67807.0,0.00857]
[1717293135692,1.95657382,67808.0,67807.0,0.00857]
[1717293135890,1.37271889,67807.0,67806.0,0.00856]
[1717293136091,1.83872613,67807.0,67806.0,0.00856]
[1717293136316,0.537489,67798.0,67797.0,0.00857]
[1717293136650,1.16614727,67798.0,67797.0,0.00857]
[1717293136836,1.17700688,67798.0,67797.0,0.00857]
[1717293137051,1.29403178,67798.0,67797.0,0.00357]
[1717293137176,1.31129988,67798.0,67797.0,0.00357]
[1717293137377,1.60629288,67798.0,67797.0,0.00357]
[1717293138002,1.64229288,67798.0,67797.0,0.00357]
[1717293138203,1.60629288,67798.0,67797.0,0.00357]
[1717293138833,1.64229288,67798.0,67797.0,0.00357]
[1717293140299,1.67829288,67798.0,67797.0,0.00357]
[1717293143498,1.62788255,67798.0,67797.0,0.00357]
[1717293149219,1.26898955,67798.0,67797.0,0.00357]
[1717293149420,1.33288955,67798.0,67797.0,0.00357]
[1717293149598,1.55058255,67798.0,67797.0,0.00357]
[1717293154374,1.54301252,67798.0,67797.0,0.00357]
[1717293154573,1.55047452,67798.0,67797.0,0.00357]
[1717293155024,1.48657452,67798.0,67797.0,0.00357]
[1717293155262,1.53575336,67798.0,67797.0,0.00357]
[1717293156170,1.24076036,67798.0,67797.0,0.00357]
[1717293157517,1.53575336,67798.0,67797.0,0.00357]
[1717293157945,1.24076036,67798.0,67797.0,0.00357]
[1717293158627,1.53575336,67798.0,67797.0,0.00357]
[1717293159583,1.53572484,67798.0,67797.0,0.00357]
[1717293160915,1.30463184,67798.0,67797.0,0.00357]
[1717293161146,1.59962484,67798.0,67797.0,0.00357]
[1717293161816,1.53572484,67798.0,67797.0,0.00357]
[1717293164081,1.53588949,67798.0,67797.0,0.00357]
[1717293165277,1.24089649,67798.0,67797.0,0.00357]
[1717293165686,1.60185096,67798.0,67797.0,0.00357]
[1717293167034,1.30685796,67798.0,67797.0,0.00357]
[1717293167685,1.60185096,67798.0,67797.0,0.00357]
[1717293168794,1.30685796,67798.0,67797.0,0.00357]
[1717293169194,1.24295796,67798.0,67797.0,0.00357]
[1717293175699,1.30685796,67798.0,67797.0,0.00357]
[1717293176818,1.60185096,67798.0,67797.0,0.00357]
[1717293177468,1.55065498,67798.0,67797.0,0.00357]
[1717293177695,1.60237712,67798.0,67797.0,0.00357]
[1717293179451,1.84187712,67798.0,67797.0,0.00357]
[1717293181757,1.68117712,67798.0,67797.0,0.00357]
[1717293182046,2.10402443,67798.0,67797.0,0.00357]
[1717293182279,2.04012443,67798.0,67797.0,0.00357]
[1717293182445,1.99364603,67798.0,67797.0,0.00357]
[1717293182672,2.10876384,67798.0,67797.0,0.00357]
[1717293183395,2.10876384,67798.0,67794.0,0.00857]
[1717293183396,1.182517,67795.0,67794.0,0.00857]
[1717293183628,2.09394623,67795.0,67794.0,0.00857]
[1717293183847,2.41532946,67795.0,67794.0,0.00857]
[1717293184072,2.35142946,67795.0,67794.0,0.00857]
[1717293184292,2.41532946,67795.0,67794.0,0.00857]
[1717293184974,2.45132946,67795.0,67794.0,0.00857]
[1717293185382,2.51758256,67795.0,67794.0,0.00857]
[1717293185585,2.48158256,67795.0,67794.0,0.00857]
[1717293186009,2.51758256,67795.0,67794.0,0.00857]
[1717293186209,2.57877744,67795.0,67794.0,0.00857]
[1717293186608,2.62215733,67795.0,67794.0,0.00857]
[1717293187617,2.65815733,67795.0,67794.0,0.00857]
[1717293187976,2.65077744,67795.0,67794.0,0.00857]
[1717293188401,2.58452434,67795.0,67794.0,0.00857]
[1717293192198,2.47686085,67795.0,67794.0,0.00857]
[1717293192813,2.48526053,67795.0,67794.0,0.00857]
[1717293193584,2.3326805,67795.0,67794.0,0.00857]
[1717293193793,2.4824864,67795.0,67794.0,0.00857]
[1717293194222,2.3217864,67795.0,67794.0,0.00857]
[1717293194951,2.62829194,67795.0,67794.0,0.00857]
[1717293195118,2.74046181,67795.0,67794.0,0.00857]
[1717293195327,7.71086709,67795.0,67794.0,0.00857]
[1717293195912,7.63119625,67795.0,67794.0,0.00857]
[1717293196168,7.70247614,67795.0,67794.0,0.00857]
[1717293197198,4.22019625,67795.0,67794.0,0.00857]
[1717293197410,4.28409625,67795.0,67794.0,0.00857]
[1717293199401,4.21789449,67795.0,67794.0,0.00857]
[1717293200022,4.15399449,67795.0,67794.0,0.00857]
[1717293200230,4.21789449,67795.0,67794.0,0.00857]
[1717293200843,4.35241877,67795.0,67794.0,0.00857]
[1717293201894,3.06301568,67795.0,67794.0,0.00857]
[1717293202101,3.13161447,67795.0,67794.0,0.00857]
[1717293202564,3.05961447,67795.0,67794.0,0.00857]
[1717293202773,3.09561447,67795.0,67794.0,0.00857]
[1717293202974,2.52961447,67795.0,67794.0,0.00857]
[1717293203171,2.90761447,67795.0,67794.0,0.00857]
[1717293203374,2.94361447,67795.0,67794.0,0.00857]
[1717293203576,2.63591447,67795.0,67794.0,0.00857]
[1717293203774,2.22621447,67795.0,67794.0,0.00857]
[1717293203982,2.22621447,67795.0,67794.0,0.24107]
[1717293203983,2.29011447,67795.0,67794.0,0.24107]
[1717293204155,1.99510747,67795.0,67794.0,0.24107]
[1717293204355,1.95910747,67795.0,67794.0,0.24107]
[1717293204578,2.29011447,67795.0,67794.0,0.24107]
[1717293204903,1.90770795,67795.0,67794.0,0.24107]
[1717293205038,1.24100129,67795.0,67794.0,0.24107]
[1717293205443,1.14600129,67795.0,67794.0,0.24107]
[1717293205729,1.00989745,67795.0,67794.0,0.24107]
[1717293205874,1.09071824,67795.0,67794.0,0.24107]
[1717293206125,1.12671824,67795.0,67794.0,0.33369011]
[1717293206330,1.16796901,67795.0,67794.0,0.24107]
[1717293206533,1.16796901,67795.0,67794.0,0.33819011]
[1717293206534,1.16271824,67795.0,67794.0,0.33819011]
[1717293206714,1.16271824,67795.0,67794.0,0.33369011]
[1717293207068,1.16271824,67795.0,67794.0,0.33819011]
[1717293207069,1.09071824,67795.0,67794.0,0.33819011]
[1717293207187,1.16271824,67795.0,67794.0,0.24107]
[1717293207386,1.24250944,67795.0,67794.0,0.33819011]
[1717293207584,1.16271824,67795.0,67794.0,0.33819011]
[1717293207808,1.18571824,67795.0,67794.0,0.33819011]
[1717293209329,0.93994033,67795.0,67794.0,0.33819011]
[1717293210724,1.03994033,67795.0,67794.0,0.33819011]
[1717293211491,0.74493333,67795.0,67794.0,0.40209011]
[1717293211869,0.73962945,67795.0,67794.0,0.40209011]
[1717293212191,0.73213899,67795.0,67794.0,0.40209011]
[1717293213226,0.66013899,67795.0,67794.0,0.40209011]
[1717293213426,0.67113899,67795.0,67794.0,0.40309011]
[1717293213653,0.69813899,67795.0,67794.0,0.40309011]
[1717293214078,0.67113899,67795.0,67794.0,0.40309011]
[1717293214294,0.67113899,67795.0,67794.0,0.40409011]
[1717293214510,0.67713899,67795.0,67794.0,0.40409011]
[1717293214716,0.66161909,67795.0,67794.0,0.40409011]
[1717293220529,0.59326612,67795.0,67794.0,0.40409011]
[1717293221915,0.66345858,67795.0,67794.0,0.40409011]
[1717293224481,0.59326612,67795.0,67794.0,0.34019011]
[1717293224680,0.59326612,67795.0,67794.0,0.40409011]
[1717293234562,0.59899642,67795.0,67794.0,0.40409011]
[1717293237935,0.49899642,67795.0,67794.0,0.40409011]
[1717293238142,0.18098942,67795.0,67794.0,0.40909011]
[1717293238341,0.18098942,67795.0,67794.0,0.49761011]
[1717293238579,0.17525912,67795.0,67794.0,0.49761011]
[1717293239899,0.17525912,67795.0,67794.0,0.49561011]
[1717293239900,0.15825912,67795.0,67794.0,0.49561011]
[1717293240133,0.16025912,67795.0,67794.0,0.50661011]
[1717293240323,0.151503,67795.0,67794.0,0.50661011]
[1717293243806,0.151503,67795.0,67794.0,0.44271011]
[1717293243978,0.151503,67795.0,67794.0,0.50661011]
[1717293246006,0.151503,67795.0,67794.0,0.60661011]
[1717293246961,0.004,67795.0,67794.0,0.90758802]
[1717293247853,0.004,67795.0,67794.0,0.8878689]
[1717293248076,0.004,67795.0,67794.0,0.9517689]
[1717293249402,0.004,67795.0,67794.0,0.90758802]
[1717293249607,0.004,67795.0,67794.0,0.9517689]
[1717293250226,0.004,67795.0,67794.0,0.80758802]
[1717293250451,0.004,67795.0,67794.0,0.74368802]
[1717293250662,0.004,67795.0,67794.0,0.80758802]
[1717293251077,0.004,67795.0,67794.0,0.74368802]
[1717293251340,0.004,67795.0,67794.0,0.80758802]
[1717293252329,0.004,67795.0,67794.0,0.74368802]
[1717293252559,0.004,67795.0,67794.0,0.80758802]
[1717293255622,0.004,67795.0,67794.0,0.27411011]
[1717293256245,0.16223593,67795.0,67794.0,0.27411011]
[1717293259503,0.16223593,67795.0,67794.0,0.21021011]
[1717293259701,0.151503,67795.0,67794.0,0.50461011]
[1717293259927,0.16223606,67795.0,67794.0,0.50461011]
[1717293265694,0.16223606,67795.0,67794.0,0.42581011]
[1717293282070,0.24433606,67795.0,67794.0,0.27411011]
[1717293282694,0.16223606,67795.0,67794.0,0.27411011]
[1717293295266,0.16223606,67795.0,67794.0,0.31835819]
[1717293296550,0.16223606,67795.0,67794.0,0.25445819]
[1717293296724,0.16223606,67795.0,67794.0,0.31835819]
[1717293297191,0.16223606,67795.0,67794.0,0.27411011]
[1717293298260,0.16223606,67795.0,67794.0,0.34048223]
[1717293300334,0.16223606,67795.0,67794.0,0.66750151]
[1717293300536,0.16223606,67795.0,67794.0,0.27411011]
[1717293300537,0.151503,67795.0,67794.0,0.27411011]
[1717293300953,0.16223178,67795.0,67794.0,0.27411011]
[1717293302597,0.16223178,67795.0,67794.0,0.34048223]
[1717293305839,0.16223178,67795.0,67794.0,0.27411011]
[1717293306047,0.16223178,67795.0,67794.0,0.34054613]
[1717293306769,0.16223178,67795.0,67794.0,0.66756774]
[1717293307011,0.151503,67795.0,67794.0,0.66756774]
[1717293307194,0.151503,67795.0,67794.0,0.34054613]
[1717293307502,0.16294458,67795.0,67794.0,0.34054613]
[1717293307716,0.16294458,67795.0,67794.0,0.21021011]
[1717293307926,0.16294458,67795.0,67794.0,0.34054617]
[1717293308696,0.16294458,67795.0,67794.0,0.27664617]
[1717293308905,0.16294458,67795.0,67794.0,0.34054617]
[1717293309542,0.16294458,67795.0,67794.0,0.34054629]
[1717293310338,0.16294458,67795.0,67794.0,0.27664629]
[1717293310545,0.16294458,67795.0,67794.0,0.21021011]
[1717293310890,0.16294458,67795.0,67794.0,0.27411011]
[1717293311389,0.16294458,67795.0,67794.0,0.31839979]
[1717293312931,0.16294458,67795.0,67794.0,0.27411011]
[1717293313335,0.16294458,67795.0,67794.0,0.83256946]
[1717293313553,0.151503,67795.0,67794.0,0.83256946]
[1717293313954,0.151503,67795.0,67794.0,0.50554629]
[1717293314412,0.230303,67795.0,67794.0,0.27664629]
[1717293314692,0.230303,67795.0,67794.0,0.27411011]
[1717293314927,0.24098181,67795.0,67794.0,0.27411011]
[1717293315135,0.230303,67795.0,67794.0,0.27411011]
[1717293315270,0.24098181,67795.0,67794.0,0.27411011]
[1717293317916,0.16218181,67795.0,67794.0,0.27411011]
[1717293318356,0.16218181,67795.0,67794.0,0.34054152]
[1717293318524,0.151503,67795.0,67794.0,0.34054152]
[1717293318729,0.151503,67795.0,67794.0,0.34054085]
[1717293318951,0.16218181,67795.0,67794.0,0.66756247]
[1717293319165,0.151503,67795.0,67794.0,0.66756247]
[1717293319360,0.004,67795.0,67794.0,0.90336247]
[1717293319589,0.004,67795.0,67794.0,1.04914038]
[1717293319805,0.004,67795.0,67794.0,1.07128396]
[1717293320122,0.004,67795.0,67794.0,1.17128396]
[1717293320839,0.004,67795.0,67794.0,1.08270964]
[1717293321651,0.004,67795.0,67794.0,0.91880964]
[1717293321859,0.004,67795.0,67794.0,0.98270964]
[1717293322105,0.004,67795.0,67794.0,1.07126443]
[1717293323104,0.004,67795.0,67794.0,1.17126443]
[1717293326080,0.004,67795.0,67794.0,1.07126443]
[1717293326284,0.004,67795.0,67794.0,1.17126443]
[1717293327200,0.004,67795.0,67794.0,1.08270964]
[1717293327843,0.004,67795.0,67794.0,1.23790964]
[1717293328296,0.004,67795.0,67794.0,1.34862754]
[1717293328709,0.004,67795.0,67794.0,1.38806272]
[1717293330198,0.004,67795.0,67794.0,1.38828665]
[1717293331711,0.004,67795.0,67794.0,1.38867616]
[1717293334145,0.004,67795.0,67794.0,1.49926599]
[1717293336652,0.004,67795.0,67794.0,1.38867616]
[1717293339285,0.004,67795.0,67794.0,1.49921979]
[1717293339486,0.004,67795.0,67794.0,1.38867616]
[1717293340263,0.004,67795.0,67794.0,1.32477616]
[1717293340647,0.004,67795.0,67794.0,1.38867616]
[1717293341899,0.004,67795.0,67794.0,1.32477616]
[1717293342151,0.004,67795.0,67794.0,1.38867616]
[1717293342528,0.004,67795.0,67794.0,1.49919967]
[1717293344567,0.004,67795.0,67794.0,1.39919967]
[1717293345419,0.0824,67795.0,67794.0,1.09949967]
[1717293345589,0.0824,67795.0,67794.0,0.61929391]
[1717293345974,0.0824,67795.0,67794.0,0.46409391]
[1717293346587,0.0938481,67795.0,67794.0,0.41988802]
[1717293347329,0.0938481,67795.0,67794.0,0.46409391]
[1717293349286,0.2413511,67795.0,67794.0,0.318316]
[1717293351175,0.67314705,67795.0,67794.0,0.06377589]
[1717293351364,1.02153601,67795.0,67794.0,0.01957]
[1717293351721,1.39136065,67795.0,67794.0,0.01957]
[1717293352051,1.39136065,67795.0,67794.0,0.00857]
[1717293352052,1.38736065,67795.0,67794.0,0.00857]
[1717293352459,1.32346065,67795.0,67794.0,0.00857]
[1717293353517,1.32646065,67795.0,67794.0,0.01957]
[1717293353873,1.32346065,67795.0,67794.0,0.00857]
[1717293354075,1.32346065,67795.0,67794.0,0.10119011]
[1717293354343,1.35946065,67795.0,67794.0,0.10119011]
[1717293354862,1.39546065,67795.0,67794.0,0.10219011]
[1717293355488,1.39546065,67795.0,67794.0,0.00957]
[1717293356116,1.39546065,67795.0,67794.0,0.10219011]
[1717293356342,1.39546065,67795.0,67794.0,0.00957]
[1717293356543,0.83255,67792.0,67791.0,0.0149413]
[1717293356749,1.47094555,67792.0,67791.0,0.0149413]
[1717293356961,1.47094555,67792.0,67769.0,0.04419501]
[1717293356962,0.73768,67780.0,67769.0,0.04419501]
[1717293357216,0.73768,67780.0,67763.0,0.09262011]
[1717293357217,0.295141,67764.0,67763.0,0.09262011]
[1717293357419,0.47801403,67764.0,67763.0,0.09712011]
[1717293357617,0.86149194,67764.0,67763.0,0.09712011]
[1717293358036,1.15663294,67764.0,67763.0,0.09712011]
[1717293358197,1.15663294,67764.0,67763.0,0.09262011]
[1717293358371,1.15663294,67764.0,67763.0,0.09712011]
[1717293358806,1.19263294,67764.0,67763.0,0.09812011]
[1717293359211,1.19263294,67764.0,67763.0,0.09362011]
[1717293359379,1.29263294,67764.0,67763.0,0.09362011]
[1717293359763,1.29263294,67764.0,67763.0,0.09812011]
[1717293359978,1.32863294,67764.0,67763.0,0.09812011]
[1717293360198,1.32863294,67764.0,67763.0,0.09712011]
[1717293360199,1.29263294,67764.0,67763.0,0.09712011]
[1717293360732,1.32863294,67764.0,67763.0,0.09712011]
[1717293361150,1.32863294,67764.0,67763.0,0.09262011]
[1717293361360,1.25663294,67764.0,67763.0,0.09262011]
[1717293361562,1.29263294,67764.0,67763.0,0.09262011]
[1717293361764,0.095,67756.0,67748.0,0.00858]
[1717293361966,1.22800686,67756.0,67748.0,0.00858]
[1717293362169,1.65843365,67756.0,67748.0,0.00858]
[1717293363393,1.5855447,67756.0,67748.0,0.00858]
[1717293363606,1.5945447,67756.0,67748.0,0.00858]
[1717293363822,1.6215447,67756.0,67748.0,0.00858]
[1717293364016,1.5576447,67756.0,67750.0,0.0045]
[1717293364311,1.4986447,67756.0,67755.0,0.01308]
[1717293364514,1.4986447,67756.0,67755.0,0.00858]
[1717293364515,1.1674687,67756.0,67755.0,0.00858]
[1717293364712,1.2034687,67756.0,67755.0,0.00858]
[1717293365087,1.1674687,67756.0,67755.0,0.00858]
[1717293365633,0.9082927,67756.0,67755.0,0.00858]
[1717293365836,0.9082927,67756.0,67755.0,0.01308]
[1717293365837,0.73951479,67756.0,67755.0,0.01308]
[1717293366683,0.70351479,67756.0,67755.0,0.01308]
[1717293367097,0.73951479,67756.0,67755.0,0.01308]
[1717293367307,0.70351479,67756.0,67755.0,0.01308]
[1717293367485,0.66751479,67756.0,67755.0,0.01308]
[1717293367695,0.72651479,67756.0,67755.0,0.01308]
[1717293367928,0.23183879,67756.0,67755.0,0.01308]
[1717293368139,0.23183879,67756.0,67755.0,0.01808]
[1717293368352,0.15983879,67756.0,67755.0,0.01808]
[1717293368780,0.17983879,67756.0,67755.0,0.01808]
[1717293369147,0.25983879,67756.0,67755.0,0.01808]
[1717293369580,0.26183879,67756.0,67755.0,0.01808]
[1717293370414,0.28683879,67756.0,67755.0,0.01808]
[1717293370622,0.26183879,67756.0,67755.0,0.01808]
[1717293370925,0.26883879,67756.0,67755.0,0.01808]
[1717293373001,0.26883879,67756.0,67755.0,0.01308]
[1717293373702,0.26883879,67756.0,67755.0,0.01808]
[1717293374549,0.16883879,67756.0,67755.0,0.01808]
[1717293375547,0.16683879,67756.0,67755.0,0.01808]
[1717293375951,0.16883879,67756.0,67755.0,0.10665]
[1717293376367,0.02125079,67756.0,67755.0,0.43005]
[1717293376628,0.01425079,67756.0,67755.0,0.43005]
[1717293376808,0.002,67756.0,67755.0,0.43005]
[1717293376945,0.004,67756.0,67755.0,0.43105]
[1717293377551,0.01623386,67756.0,67755.0,0.43105]
[1717293380620,0.004,67756.0,67755.0,0.60645]
[1717293381112,0.004,67756.0,67755.0,0.75222791]
[1717293382045,0.002,67756.0,67755.0,0.75222791]
[1717293383362,0.147575,67762.0,67761.0,0.0095]
[1717293383565,0.147567,67766.0,67765.0,0.0095]
[1717293383800,0.147567,67766.0,67765.0,0.09807]
[1717293384013,0.147567,67766.0,67765.0,0.25827]
[1717293384230,0.147567,67766.0,67765.0,0.41497]
[1717293384864,0.149567,67766.0,67765.0,0.43397]
[1717293385107,0.151567,67766.0,67765.0,0.52637]
[1717293385311,0.151567,67766.0,67765.0,0.50937]
[1717293385312,0.16381769,67766.0,67765.0,0.50937]
[1717293385511,0.16181769,67766.0,67765.0,0.33017]
[1717293385799,0.16381769,67766.0,67765.0,0.34517]
[1717293386728,0.16581769,67766.0,67765.0,0.35717]
[1717293386932,0.16381769,67766.0,67765.0,0.34517]
[1717293387145,0.16181769,67766.0,67765.0,0.34217]
[1717293387348,0.16381769,67766.0,67765.0,0.34217]
[1717293387623,0.16181769,67766.0,67765.0,0.33017]
[1717293387794,0.16381769,67766.0,67765.0,0.35717]
[1717293388016,0.16681769,67766.0,67765.0,0.35717]
[1717293388229,0.01525069,67766.0,67765.0,0.33017]